bitfinex-derivatives/quotes_ETHF0:USTF0_20240901
["timestamp","ask_amount","ask_price","bid_price","bid_amount"]
[1725217283092,0.40076,2495.4,2495.1,8.55849964]
[1725217283299,0.40074,2495.5,2494.9,0.40083]
[1725217283600,0.00596741,2495.4,2495.0,0.00600841]
[1725217284307,0.00596741,2495.4,2495.3,3.2078]
[1725217284500,0.00596741,2495.4,2495.1,11.26857354]
[1725217284703,0.00596741,2495.4,2495.3,0.40077]
[1725217285204,0.00596741,2495.4,2495.3,4.0072]
[1725217285403,0.00596741,2495.4,2495.2,8.4660489]
[1725217285605,0.00596741,2495.4,2495.0,3.61461841]
[1725217285803,0.00596741,2495.4,2495.1,8.53879895]
[1725217286013,0.00596741,2495.4,2495.0,3.61461841]
[1725217286420,0.00596741,2495.4,2495.1,8.50647884]
[1725217290318,0.00596741,2495.4,2495.0,3.21380841]
[1725217290527,0.40672741,2495.4,2495.0,3.21380841]
[1725217291524,0.40077,2495.3,2495.0,3.21380841]
[1725217292120,0.40672741,2495.4,2495.0,3.21380841]
[1725217293018,0.00596741,2495.4,2495.0,3.21380841]
[1725217293219,0.40077,2495.3,2495.0,3.21380841]
[1725217294926,3.17672741,2495.4,2495.0,0.00600841]
[1725217295132,0.40671741,2495.4,2495.0,0.00600841]
[1725217295426,0.40077,2495.3,2495.0,0.00600841]
[1725217297029,0.00596741,2495.4,2495.3,0.40077]
[1725217297423,0.00596741,2495.4,2495.3,4.40797]
[1725217297728,0.00596741,2495.4,2495.3,12.8562856]
[1725217297936,0.00596741,2495.4,2495.3,12.4555156]
[1725217298232,0.00596741,2495.4,2495.3,8.4483156]
[1725217298435,0.40078,2495.3,2495.0,0.00600841]
[1725217298727,2.77,2495.2,2495.0,0.00600841]
[1725217302522,0.00596741,2495.4,2495.0,0.00600841]
[1725217302726,0.00596741,2495.4,2495.1,11.70190317]
[1725217302927,0.00596741,2495.4,2495.3,0.40077]
[1725217303131,0.00596741,2495.4,2495.3,4.40797]
[1725217303336,0.00596741,2495.4,2495.3,8.3732731]
[1725217303534,0.00596741,2495.4,2495.3,12.7812431]
[1725217304538,2.77,2496.0,2495.5,0.40073]
[1725217304838,2.77,2496.0,2495.6,0.3605]
[1725217305535,2.77,2496.0,2495.6,0.76122]
[1725217306838,2.77,2496.0,2495.6,0.3605]
[1725217307238,2.77,2496.0,2495.6,0.76122]
[1725217307432,2.77,2496.0,2495.7,0.4007]
[1725217307631,2.77,2496.0,2495.7,0.354]
[1725217310235,2.77,2496.3,2495.6,0.3605]
[1725217310735,0.40064,2496.1,2495.6,0.3605]
[1725217311035,3.60843,2496.2,2495.6,0.3605]
[1725217311234,3.60843,2496.2,2495.6,0.76122]
[1725217311635,0.40064,2496.1,2495.6,0.3605]
[1725217313335,3.60843,2496.2,2495.6,0.3605]
[1725217313745,3.2078,2496.2,2495.6,0.3605]
[1725217313939,3.60844,2496.2,2495.6,0.3605]
[1725217314142,0.40064,2496.1,2495.6,0.3605]
[1725217314346,3.2078,2496.2,2495.6,0.3605]
[1725217314535,4.00628681,2496.7,2496.0,3.2078]
[1725217314536,0.40057,2496.6,2496.0,3.2078]
[1725217314736,0.40057,2496.6,2496.1,0.3827]
[1725217315246,0.40058,2496.5,2496.1,0.3827]
[1725217315843,0.40057,2496.6,2496.1,0.3827]
[1725217317545,3.17055,2496.7,2496.1,0.78334]
[1725217317749,3.17055,2496.7,2496.1,0.3827]
[1725217319350,3.2078,2496.6,2496.1,0.3827]
[1725217319938,3.60836,2496.6,2496.1,0.3827]
[1725217320253,3.2078,2496.6,2496.1,0.3827]
[1725217320641,3.60837,2496.6,2496.1,0.3827]
[1725217321243,3.2078,2496.6,2496.1,0.3827]
[1725217321441,3.2078,2496.6,2496.1,0.78334]
[1725217321653,3.2078,2496.6,2496.2,0.3775]
[1725217321850,2.77,2496.9,2496.5,3.2078]
[1725217322153,2.77,2496.9,2496.5,0.00600841]
[1725217322154,4.5065426,2496.8,2496.5,0.00600841]
[1725217322544,8.5121426,2496.8,2496.5,0.00600841]
[1725217323451,4.5065426,2496.8,2496.5,0.00600841]
[1725217323652,3.1431,2496.9,2496.5,0.00600841]
[1725217327163,2.77,2496.9,2496.5,0.00600841]
[1725217327461,3.5177,2496.9,2496.5,0.00600841]
[1725217332760,5.9778,2497.4,2496.5,0.00600841]
[1725217332962,3.2078,2497.4,2496.8,5.9778]
[1725217333163,3.2078,2497.4,2497.1,0.40047]
[1725217333384,3.2078,2497.4,2497.2,0.40046]
[1725217333664,3.2078,2497.4,2496.9,9.16577477]
[1725217333863,3.2078,2497.4,2497.2,0.40045]
[1725217334757,0.7554,2497.6,2497.4,0.40042]
[1725217334958,4.7594,2497.6,2497.4,0.40042]
[1725217335162,0.7554,2497.6,2497.4,0.40042]
[1725217335562,4.7594,2497.6,2497.4,0.40042]
[1725217335757,3.1518,2498.0,2497.5,0.40042]
[1725217335952,3.1518,2498.0,2497.4,0.40042]
[1725217336269,4.44462178,2497.9,2497.4,0.40042]
[1725217336466,4.44462178,2497.9,2497.2,2.77]
[1725217336665,4.44462178,2497.9,2497.4,3.2078]
[1725217336870,4.44462178,2497.9,2497.5,0.3889]
[1725217337172,4.44462178,2497.9,2497.5,1.16661]
[1725217337570,0.7234,2498.1,2497.5,0.7662]
[1725217337766,0.3519,2498.1,2497.8,0.40036]
[1725217338265,0.3519,2498.1,2497.7,0.40037]
[1725217339358,0.3519,2498.1,2497.8,0.40036]
[1725217339566,3.17027,2498.5,2497.9,0.40034]
[1725217339775,0.19710764,2498.4,2498.0,0.00600841]
[1725217339971,4.64578081,2498.3,2498.0,0.00600841]
[1725217340155,4.64578081,2498.4,2498.0,0.00600841]
[1725217340362,4.1058602,2498.5,2498.0,0.40633841]
[1725217340667,4.1058602,2498.5,2498.0,0.00600841]
[1725217341259,0.40027,2498.4,2498.0,0.00600841]
[1725217342264,4.1058502,2498.5,2498.0,0.40633841]
[1725217342861,0.40027,2498.4,2498.0,0.00600841]
[1725217345078,0.40027,2498.4,2498.0,0.38600841]
[1725217346574,0.40029,2498.3,2498.0,0.38600841]
[1725217347174,0.40031,2498.2,2498.0,0.00600841]
[1725217347359,0.4003,2498.3,2498.0,0.00600841]
[1725217347564,0.4003,2498.2,2498.0,0.00600841]
[1725217348066,0.40029,2498.3,2498.0,0.00600841]
[1725217348876,0.40029,2498.3,2498.0,0.39440841]
[1725217351679,0.40028,2498.4,2498.0,0.79473841]
[1725217351975,0.40028,2498.4,2498.0,0.39440841]
[1725217352179,0.40029,2498.3,2498.0,0.39440841]
[1725217352676,0.40029,2498.3,2498.0,0.00600841]
[1725217352677,0.40031,2498.2,2498.0,0.00600841]
[1725217353081,3.60809,2498.3,2498.0,0.00600841]
[1725217353265,0.40032,2498.1,2498.0,0.00600841]
[1725217353470,3.17031,2498.2,2498.0,0.00600841]
[1725217353886,3.6081,2498.3,2498.0,0.00600841]
[1725217354084,3.5058,2498.5,2498.0,0.00600841]
[1725217354380,0.3691,2498.5,2498.0,0.00600841]
[1725217354589,3.2078,2498.6,2498.3,0.40028]
[1725217354770,1.13762,2498.8,2498.4,0.7363]
[1725217355268,0.3554,2498.8,2498.4,1.13657]
[1725217355680,0.3554,2498.8,2498.5,3.2078]
[1725217355980,0.3554,2498.8,2498.5,3.60805]
[1725217356179,0.3554,2498.8,2498.4,1.13657]
[1725217356570,0.3554,2498.8,2498.4,0.7363]
[1725217357079,0.3554,2498.8,2498.4,4.34437]
[1725217357471,6.37798,2499.0,2498.4,4.34437]
[1725217357676,0.4002,2498.9,2498.4,4.34437]
[1725217357881,6.73948,2499.0,2498.4,4.34437]
[1725217358068,0.40019,2498.9,2498.4,4.34437]
[1725217358274,0.40019,2498.9,2498.4,3.9441]
[1725217358779,0.20297751,2498.8,2498.4,3.9441]
[1725217358981,0.40024,2498.7,2498.4,3.9441]
[1725217359180,0.40022,2498.8,2498.4,3.9441]
[1725217359876,0.40022,2498.7,2498.4,3.9441]
[1725217360381,0.40021,2498.8,2498.4,3.9441]
[1725217361269,0.40021,2498.8,2498.4,0.7363]
[1725217361671,4.8508128,2498.9,2498.4,1.13656]
[1725217362188,0.40021,2498.8,2498.4,0.7363]
[1725217362380,4.4506128,2498.9,2498.3,3.2078]
[1725217362381,0.40022,2498.7,2498.3,3.2078]
[1725217362575,0.40022,2498.7,2498.3,3.5965]
[1725217363280,0.40022,2498.7,2498.3,3.99678]
[1725217363486,0.40024,2498.6,2498.3,3.5965]
[1725217363676,0.40023,2498.7,2498.3,3.5965]
[1725217363876,0.40027,2498.4,2498.3,3.2078]
[1725217364082,0.40027,2498.4,2498.1,0.3873]
[1725217364277,3.5771,2498.6,2498.1,0.3873]
[1725217364478,0.40024,2498.6,2498.2,0.7862]
[1725217364778,0.40024,2498.6,2498.2,0.3859]
[1725217365792,0.40026,2498.5,2498.2,0.3859]
[1725217366988,0.40024,2498.6,2498.2,0.3859]
[1725217368892,6.37803,2498.7,2498.2,0.3859]
[1725217369293,3.2078,2498.7,2498.2,0.7862]
[1725217370192,3.60802,2498.7,2498.2,0.3859]
[1725217370392,3.2078,2498.7,2498.2,0.7862]
[1725217370989,3.2078,2498.7,2498.2,0.78619]
[1725217371386,3.2078,2498.8,2498.2,0.3859]
[1725217371587,3.2078,2498.8,2498.3,8.46585991]
[1725217371792,3.2078,2498.8,2498.4,0.77616]
[1725217372200,3.2078,2498.8,2498.5,0.3658]
[1725217372598,3.2078,2498.8,2498.5,0.76605]
[1725217373298,3.2078,2499.2,2498.6,0.40023]
[1725217373495,3.2078,2499.2,2498.7,0.3568]
[1725217374098,3.2078,2499.2,2498.9,0.40019]
[1725217374413,3.2078,2499.2,2499.0,0.3699]
[1725217374701,3.2078,2499.2,2498.8,3.2078]
[1725217374898,0.376,2499.1,2498.8,3.2078]
[1725217375694,3.2078,2499.2,2498.8,3.2078]
[1725217376299,3.2078,2499.2,2498.8,3.608]
[1725217376599,3.2078,2499.2,2498.9,0.40019]
[1725217377102,3.2078,2499.2,2499.0,0.3657]
[1725217378297,3.2078,2499.2,2499.1,0.3578]
[1725217379304,3.2078,2499.2,2499.1,0.75796]
[1725217379502,3.2078,2499.2,2499.1,0.3578]
[1725217379707,3.2078,2499.2,2499.1,4.3594]
[1725217380203,3.2078,2499.2,2499.1,4.75956]
[1725217380709,0.3574,2499.8,2499.1,4.75956]
[1725217380895,6.56751681,2499.9,2499.2,3.1533]
[1725217380896,6.20221681,2499.9,2499.2,3.1533]
[1725217381107,3.2078,2499.9,2499.5,0.40009]
[1725217381404,0.2,2500.0,2499.6,3.5125]
[1725217381608,0.40004,2499.9,2499.6,0.7425]
[1725217381903,0.40006,2499.8,2499.4,3.5911]
[1725217382105,3.4078,2500.0,2499.4,1.1258]
[1725217382500,3.4078,2500.0,2499.5,0.40009]
[1725217382707,3.80782,2500.0,2499.4,1.1258]
[1725217382904,3.4078,2500.0,2499.4,1.1258]
[1725217383102,3.4078,2500.0,2499.5,0.40009]
[1725217383298,3.80782,2500.0,2499.5,2.77]
[1725217383503,0.60002,2500.0,2499.5,2.77]
[1725217383708,3.80782,2500.0,2499.5,2.77]
[1725217384208,3.4078,2500.0,2499.6,8.16725686]
[1725217384404,3.4078,2500.0,2499.6,8.56732686]
[1725217384603,3.4078,2500.0,2499.7,2.77]
[1725217385106,3.4078,2500.0,2499.8,8.86255431]
[1725217385303,3.4078,2500.0,2499.9,0.3898]
[1725217387411,0.2,2500.0,2499.9,0.3898]
[1725217387613,0.2,2500.0,2499.9,0.7558]
[1725217388805,0.2,2500.0,2499.8,8.86255431]
[1725217388806,3.4078,2500.0,2499.8,0.3595]
[1725217389907,3.7598,2500.0,2499.4,0.7564]
[1725217390210,4.99640131,2499.9,2499.4,1.1204]
[1725217390407,0.40004,2499.9,2499.4,1.1204]
[1725217390607,3.7598,2500.0,2499.4,0.7544]
[1725217390822,0.4001,2499.5,2499.3,3.21380841]
[1725217391006,0.40008,2499.6,2499.3,3.21380841]
[1725217391313,7.36636131,2499.9,2499.3,3.21380841]
[1725217391314,0.40007,2499.7,2499.3,3.21380841]
[1725217391513,0.4001,2499.5,2499.3,0.00600841]
[1725217391708,0.40009,2499.6,2499.3,0.00600841]
[1725217392220,3.7598,2500.0,2499.4,2.77]
[1725217392415,0.40006,2499.8,2499.4,2.77]
[1725217392617,3.7598,2500.0,2499.4,2.77]
[1725217392917,0.40004,2499.9,2499.5,0.3676]
[1725217393111,0.40004,2499.9,2499.6,0.3832]
[1725217393522,0.40005,2499.8,2499.6,0.3832]
[1725217393813,0.40005,2499.8,2499.5,0.3676]
[1725217394420,0.40006,2499.7,2499.5,0.3676]
[1725217394618,0.40006,2499.7,2499.3,0.76002841]
[1725217394813,0.40006,2499.7,2499.4,0.3676]
[1725217395115,4.61732268,2499.9,2499.4,3.1376]
[1725217395417,0.40005,2499.8,2499.4,3.1376]
[1725217395818,3.7598,2500.0,2499.4,3.1376]
[1725217396018,0.40004,2499.9,2499.5,0.40009]
[1725217396214,0.40004,2499.9,2499.4,3.5377]
[1725217398309,0.40005,2499.8,2499.4,3.1376]
[1725217399116,0.40004,2499.9,2499.4,3.53771]
[1725217399417,3.4078,2500.0,2499.5,11.06500031]
[1725217399619,3.4078,2500.0,2499.6,0.3728]
[1725217399825,3.4078,2500.0,2499.6,0.77287]
[1725217400523,3.4078,2500.0,2499.7,0.40006]
[1725217400719,2.61531681,2500.9,2499.9,5.9778]
[1725217400918,12.60407937,2501.6,2499.8,0.3679]
[1725217400919,0.3579,2501.3,2500.8,3.2078]
[1725217401120,0.3579,2501.3,2500.9,3.16986]
[1725217401321,0.3783,2501.5,2500.9,11.0312773]
[1725217401509,0.55715845,2501.8,2500.9,11.4311373]
[1725217401510,0.3579,2501.2,2500.9,11.4311373]
[1725217401917,0.39986,2501.0,2500.9,8.2612773]
[1725217402113,0.39981,2501.3,2500.9,8.2612773]
[1725217402419,0.39986,2501.0,2500.9,8.2612773]
[1725217402826,0.39987,2500.9,2500.8,0.00600841]
[1725217403219,4.39827,2500.9,2500.8,0.00600841]
[1725217405736,9.9984,2500.9,2500.2,2.77]
[1725217406018,0.39995,2500.5,2500.2,2.77]
[1725217406221,0.39993,2500.6,2500.2,2.77]
[1725217406530,6.3661,2500.8,2500.0,3.956]
[1725217406719,4.48096244,2500.5,2500.1,0.00600841]
[1725217406914,0.00600841,2500.7,2500.6,0.39992]
[1725217407416,0.00600841,2500.7,2500.6,24.57458447]
[1725217407615,0.00600841,2500.7,2500.6,24.94958447]
[1725217408916,0.00600841,2500.7,2500.6,25.1490158]
[1725217410031,0.3883,2501.4,2500.9,0.39986]
[1725217410219,0.3883,2501.4,2501.0,0.3568]
[1725217410417,0.3883,2501.4,2501.2,2.77]
[1725217410816,3.2078,2501.5,2501.2,6.7676]
[1725217411016,3.2078,2501.5,2501.2,2.77]
[1725217411213,3.2078,2502.0,2501.2,2.77]
[1725217411419,0.39976,2501.6,2501.2,2.77]
[1725217411622,3.2078,2501.7,2501.1,0.00599628]
[1725217412017,0.39974,2501.7,2501.2,11.23465357]
[1725217412223,0.39974,2501.7,2501.3,0.3638]
[1725217412418,1.14193,2501.8,2501.3,0.3638]
[1725217412822,0.3896,2501.8,2501.3,0.3638]
[1725217413027,0.78933,2501.8,2501.3,0.3638]
[1725217413225,3.2078,2501.7,2501.3,0.3638]
[1725217413422,3.60755,2501.7,2501.3,0.3638]
[1725217414528,3.60754,2501.7,2501.3,0.3638]
[1725217414729,0.39978,2501.5,2501.2,11.23465357]
[1725217414928,0.39981,2501.3,2501.1,0.00599628]
[1725217415133,0.7675,2501.4,2501.1,0.00599628]
[1725217415327,0.3677,2501.4,2501.1,0.00599628]
[1725217415627,0.76749,2501.4,2501.1,0.00599628]
[1725217416022,0.3677,2501.4,2501.1,0.00599628]
[1725217416223,0.39978,2501.5,2501.1,0.00599628]
[1725217416433,0.39979,2501.4,2501.1,0.00599628]
[1725217416923,3.2078,2501.4,2501.1,0.00599628]
[1725217417128,0.77221,2501.3,2501.1,0.00599628]
[1725217417323,0.39982,2501.2,2501.1,0.00599628]
[1725217417629,4.78142,2501.2,2501.1,0.00599628]
[1725217418536,10.78142,2501.2,2501.1,0.00599628]
[1725217419030,14.55099,2501.2,2501.1,0.00599628]
[1725217419629,13.55142,2501.2,2501.1,0.00599628]
[1725217420627,4.78142,2501.2,2501.1,0.00599628]
[1725217421230,4.3816,2501.2,2501.1,0.00599628]
[1725217421425,0.3724,2501.3,2501.1,0.00599628]
[1725217421623,0.39982,2501.2,2501.1,0.00599628]
[1725217422023,4.39822,2501.2,2501.1,0.00599628]
[1725217422833,4.77092,2501.2,2501.1,0.00599628]
[1725217423031,4.3711,2501.2,2501.1,0.00599628]
[1725217423235,4.77092,2501.2,2501.1,0.00599628]
[1725217423435,4.3711,2501.2,2501.1,0.00599628]
[1725217423644,0.3727,2501.2,2501.1,0.00599628]
[1725217423831,0.3724,2501.3,2501.1,0.00599628]
[1725217424028,0.77221,2501.3,2501.1,0.00599628]
[1725217424233,0.3724,2501.3,2501.1,0.00599628]
[1725217424636,0.39982,2501.2,2501.1,0.00599628]
[1725217424836,0.3724,2501.3,2501.1,0.00599628]
[1725217425538,3.41112029,2501.8,2501.2,3.16982]
[1725217425727,3.41112029,2501.8,2501.3,0.3682]
[1725217425728,0.39977,2501.6,2501.3,0.3682]
[1725217426339,3.5805,2501.8,2501.3,0.3682]
[1725217426533,0.39975,2501.7,2501.3,0.3682]
[1725217427731,0.39976,2501.6,2501.3,0.3682]
[1725217428237,0.39975,2501.7,2501.3,0.3682]
[1725217428741,0.39976,2501.6,2501.3,0.3682]
[1725217429042,0.39975,2501.7,2501.3,0.3682]
[1725217429441,3.2078,2502.1,2501.4,2.77]
[1725217429736,3.2078,2502.1,2501.5,0.39976]
[1725217429737,4.37819,2502.1,2501.5,0.39976]
[1725217430036,0.3997,2502.0,2501.5,0.39976]
[1725217430228,3.9785,2502.1,2501.6,11.10016146]
[1725217430425,3.9785,2502.1,2501.7,0.77273]
[1725217430736,3.9785,2502.1,2501.8,8.30387279]
[1725217431639,0.7707,2502.1,2501.4,6.3402]
[1725217431845,0.7707,2502.1,2501.5,0.373]
[1725217432030,0.7707,2502.1,2501.6,0.39975]
[1725217432234,3.2078,2502.2,2501.8,5.9778]
[1725217432531,3.65382124,2503.2,2501.8,5.9778]
[1725217432532,5.82311681,2503.4,2502.0,5.9778]
[1725217432730,0.3822,2503.2,2502.5,2.77]
[1725217432937,0.39955,2503.0,2502.5,3.1397]
[1725217433243,0.39955,2503.0,2502.6,0.3849]
[1725217433441,5.9778,2503.1,2502.5,0.3697]
[1725217433742,3.60737,2502.8,2502.4,0.00599628]
[1725217433932,3.60737,2502.8,2502.4,0.38959628]
[1725217434128,3.2078,2502.8,2502.4,0.78921628]
[1725217434333,0.39955,2502.9,2502.4,0.38959628]
[1725217434643,3.2078,2502.9,2502.4,0.78922628]
[1725217434945,3.2078,2502.9,2502.4,0.78921628]
[1725217435139,3.60735,2502.9,2502.4,0.38959628]
[1725217435340,0.39957,2502.8,2502.4,0.38959628]
[1725217435641,3.2078,2502.9,2502.4,0.78922628]
[1725217436032,3.2078,2502.9,2502.5,2.77]
[1725217436235,3.2078,2502.9,2502.5,11.13888752]
[1725217436537,3.2078,2502.9,2502.5,8.36888752]
[1725217436731,3.2078,2502.9,2502.5,8.76849752]
[1725217437129,3.2078,2502.9,2502.5,8.36888752]
[1725217437325,0.39953,2503.1,2502.5,8.76849752]
[1725217437539,0.39953,2503.1,2502.6,2.77]
[1725217437732,3.2078,2503.4,2502.8,2.77]
[1725217437931,3.2078,2503.4,2502.9,0.77964]
[1725217438138,3.2078,2503.4,2503.0,3.1299]
[1725217438439,0.39946,2503.5,2503.0,7.52463]
[1725217438637,0.39946,2503.5,2503.0,3.52943]
[1725217438834,0.39946,2503.5,2503.0,3.1299]
[1725217439241,3.2078,2503.7,2503.2,3.16949]
[1725217439433,3.2078,2503.7,2503.3,0.377]
[1725217439756,3.2078,2503.7,2503.5,2.77]
[1725217441239,3.2078,2503.7,2503.3,3.147]
[1725217441641,0.3995,2503.3,2503.0,3.1299]
[1725217441847,3.60728,2503.4,2503.0,3.4833]
[1725217442037,3.2078,2503.7,2503.3,2.77]
[1725217442341,3.2078,2503.7,2503.1,17.44409141]
[1725217442342,3.2078,2503.7,2503.6,2.77]
[1725217442542,3.2078,2503.7,2503.6,6.7644]
[1725217443232,3.2078,2503.7,2503.5,0.3534]
[1725217443631,3.2078,2503.7,2503.6,0.3596]
[1725217444035,3.2078,2503.7,2503.3,2.77]
[1725217444445,3.60723,2503.7,2503.3,11.36331753]
[1725217444748,3.60723,2503.7,2503.5,2.77]
[1725217444749,3.2078,2503.7,2503.5,2.77]
[1725217445131,3.2078,2503.7,2503.6,0.3799]
[1725217445533,3.2078,2503.7,2503.6,4.3743]
[1725217446543,3.2078,2504.6,2503.6,10.3743]
[1725217446752,3.2078,2504.4,2504.1,2.77]
[1725217447043,3.2078,2504.9,2504.3,6.37712]
[1725217447254,3.2078,2504.9,2504.7,2.77]
[1725217447548,3.2078,2506.1,2505.0,18.094]
[1725217447737,3.2078,2506.1,2505.4,2.77]
[1725217448056,3.2078,2506.1,2505.3,0.00599628]
[1725217448057,3.60691,2505.7,2505.3,0.00599628]
[1725217448344,0.7248,2506.5,2505.4,11.39439822]
[1725217448345,3.60683,2506.2,2505.4,11.39439822]
[1725217448548,3.2078,2506.2,2505.4,11.39439822]
[1725217448740,0.39904,2506.1,2505.4,11.39439822]
[1725217448938,3.2078,2506.2,2505.4,11.39439822]
[1725217448939,3.60684,2506.2,2505.4,11.39439822]
[1725217449243,2.77,2506.3,2505.4,11.39439822]
[1725217449244,3.60688,2505.9,2505.4,11.39439822]
[1725217449439,3.2078,2505.9,2505.4,11.39439822]
[1725217449641,0.39912,2505.7,2505.3,0.00599628]
[1725217449842,3.2078,2505.8,2505.3,0.00599628]
[1725217450143,3.2078,2505.7,2505.3,0.00599628]
[1725217451250,3.60691,2505.7,2505.3,0.00599628]
[1725217451453,3.2078,2505.7,2505.3,0.00599628]
[1725217451646,0.39912,2505.6,2505.3,0.00599628]
[1725217451847,3.2078,2505.7,2505.3,0.00599628]
[1725217451848,3.60695,2505.4,2505.3,0.00599628]
[1725217452051,0.39923,2505.0,2504.7,3.68]
[1725217452245,3.60703,2504.9,2504.4,4.054]
[1725217452439,0.39927,2504.7,2504.4,3.68]
[1725217452641,3.2078,2504.6,2504.4,3.68]
[1725217452942,0.3819,2504.8,2504.4,3.68]
[1725217453251,0.39928,2504.6,2504.2,0.00599628]
[1725217453447,3.2078,2504.4,2504.2,0.00599628]
[1725217454155,3.5897,2504.8,2504.2,3.99879628]
[1725217454344,3.5897,2504.8,2504.3,8.30859897]
[1725217454850,3.2078,2504.6,2504.3,8.30859897]
[1725217455242,3.68,2504.4,2503.0,3.6078]
[1725217455557,0.39943,2503.7,2503.4,8.46861687]
[1725217455854,0.39943,2503.7,2502.6,0.19902831]
[1725217455855,4.20645,2503.5,2503.1,3.8]
[1725217456045,3.6073,2503.2,2503.1,3.8]
[1725217456245,0.39953,2503.1,2502.9,0.00599628]
[1725217456446,3.6073,2503.2,2503.1,8.60234266]
[1725217456754,0.39952,2503.1,2503.0,6.42078279]
[1725217457060,0.39954,2503.0,2502.9,0.00599628]
[1725217457350,0.39954,2503.0,2502.9,8.48782371]
[1725217457556,0.39953,2503.1,2502.9,8.48782371]
[1725217457750,3.2078,2503.2,2502.9,8.48782371]
[1725217457951,0.39952,2503.1,2502.9,8.48782371]
[1725217458347,3.60731,2503.2,2502.9,8.48782371]
[1725217458545,3.2078,2503.2,2502.9,8.48782371]
[1725217458750,0.39954,2503.0,2502.9,8.48782371]
[1725217459859,3.2078,2503.2,2502.9,8.48782371]
[1725217460061,0.39952,2503.1,2502.9,8.48782371]
[1725217460250,3.2078,2503.2,2502.9,8.48782371]
[1725217460251,0.39954,2503.0,2502.9,8.48782371]
[1725217460559,0.39954,2503.0,2501.2,3.2078]
[1725217460560,8.04167393,2503.0,2501.2,3.2078]
[1725217460743,3.2078,2502.0,2501.3,0.3998]
[1725217460946,3.60756,2501.7,2501.6,3.33650623]
[1725217461155,0.39979,2501.4,2500.8,0.731]
[1725217461346,3.2078,2501.4,2500.8,0.731]
[1725217461548,0.39981,2501.3,2500.9,8.15521268]
[1725217461750,3.61359628,2501.4,2500.9,8.15521268]
[1725217462243,3.21379628,2501.4,2500.9,8.15521268]
[1725217462447,3.2078,2502.0,2501.3,3.2078]
[1725217462647,3.2078,2502.7,2501.7,3.2078]
[1725217462848,6.8878,2502.7,2501.8,0.7537]
[1725217463057,11.48773693,2502.7,2501.8,9.00035307]
[1725217463258,3.2078,2502.4,2501.8,9.00035307]
[1725217463564,3.21379628,2502.4,2501.8,9.00634935]
[1725217463950,0.00599628,2502.4,2502.0,3.2078]
[1725217464357,0.00599628,2502.4,2502.1,8.15967232]
[1725217464753,0.00599628,2502.4,2502.1,12.15647232]
[1725217464955,0.00599628,2502.4,2502.1,12.55614232]
[1725217465163,0.00599628,2502.4,2502.1,8.15967232]
[1725217465462,0.00599628,2502.4,2502.0,8.60395775]
[1725217465660,0.00599628,2502.4,2502.2,6.8878]
[1725217465853,0.00599628,2502.4,2502.3,0.39965]
[1725217466053,0.00599628,2502.4,2502.3,4.39565]
[1725217466254,0.00599628,2502.4,2502.3,12.78104537]
[1725217466847,0.00599628,2502.4,2502.3,13.17044537]
[1725217467049,3.2078,2503.6,2502.3,23.93483743]
[1725217467349,7.37796144,2503.6,2502.9,0.39955]
[1725217467553,7.37796144,2503.6,2503.0,0.39953]
[1725217467756,3.2078,2503.6,2503.0,8.16018738]
[1725217467949,3.61319585,2503.6,2502.9,9.3308726]
[1725217468154,3.21375585,2503.6,2502.9,0.7456]
[1725217468351,5.02294721,2503.5,2502.9,0.7456]
[1725217468560,4.62347721,2503.5,2503.0,8.5852726]
[1725217469457,4.62347721,2503.5,2503.1,1.74803756]
[1725217469660,3.21375585,2503.6,2503.2,1.74803756]
[1725217469959,3.21375585,2503.6,2503.1,0.00599628]
[1725217469960,4.44945038,2503.5,2503.1,0.00599628]
[1725217470166,0.00595585,2503.6,2503.4,0.39947]
[1725217470471,0.00595585,2503.6,2503.5,8.26030919]
[1725217470961,0.00595585,2503.6,2503.5,10.40788029]
[1725217471161,0.00595585,2503.6,2503.5,10.00842029]
[1725217472571,3.2078,2504.0,2503.5,11.43965964]
[1725217472758,3.2078,2504.0,2503.6,3.17935045]
[1725217472957,3.2078,2504.0,2503.5,8.26030919]
[1725217472958,3.60718,2504.0,2503.7,3.17935045]
[1725217473152,0.3994,2503.9,2503.8,3.17935045]
[1725217473455,3.61544,2504.3,2503.8,3.17935045]
[1725217473652,3.61544,2504.3,2503.9,1.7481111]
[1725217473653,3.9936,2504.2,2503.9,1.7481111]
[1725217473859,3.9936,2504.2,2503.2,3.2078]
[1725217473860,6.8878,2504.0,2503.2,3.2078]
[1725217474061,3.60723,2503.7,2503.3,1.74797846]
[1725217474254,3.2078,2503.7,2503.1,0.00599628]
[1725217474461,0.39947,2503.4,2503.1,0.00599628]
[1725217474666,3.2078,2503.4,2503.1,0.00599628]
[1725217475766,3.2078,2503.4,2502.6,4.0369]
[1725217475767,11.3552,2503.3,2501.5,3.2078]
[1725217475968,3.2078,2502.2,2501.5,3.2078]
[1725217476161,0.99921,2502.1,2501.2,0.3596]
[1725217476360,0.99921,2502.1,2500.9,3.68]
[1725217476361,3.2078,2501.9,2500.9,3.68]
[1725217476569,3.60752,2501.9,2501.3,8.27814307]
[1725217476760,4.16906599,2501.8,2501.3,0.00599628]
[1725217477263,0.39978,2501.5,2501.3,0.00599628]
[1725217477577,0.00599628,2501.9,2501.3,0.00599628]
[1725217477870,3.21379628,2501.9,2501.3,0.00599628]
[1725217478071,0.39976,2501.7,2501.3,0.00599628]
[1725217478264,4.28449304,2501.8,2501.3,0.00599628]
[1725217478465,4.68423304,2501.8,2501.3,0.00599628]
[1725217478973,0.39976,2501.6,2501.3,0.00599628]
[1725217479166,0.39975,2501.7,2501.3,0.00599628]
[1725217479359,4.68422304,2501.8,2501.3,0.00599628]
[1725217479570,4.23417772,2501.6,2501.3,0.00599628]
[1725217479763,8.23177772,2501.6,2501.3,0.00599628]
[1725217479959,4.39736,2501.6,2501.3,0.00599628]
[1725217480158,4.23417772,2501.5,2501.3,0.00599628]